{"text_format":"1","workbook":"xlsx","n_sheets":7,"sheets":["Реестр начислений","Настройки","Шаблон ДШК","Шаблон ПД4","вер. 3.00 от 21.12.2016","Карточки ДШК","Квитанция ПД4"],"not_rendered":{"charts":0,"images":0,"macros":1,"external_links":0,"defined_names":17,"comments":0,"pivot_tables":0},"unopened":[],"bounds":{"document_bytes":16777216,"sheet_cells":100000,"rows_first":2000,"rows_last":500,"rows_between":2000,"halvings":0,"cell_chars":16384,"cell_head_chars":4096},"cells_cut":0,"cells_raw":0,"read":"whole","date_system":"1900"}

{"sheet":"Реестр начислений","index":0,"n_rows":7,"n_cols":6,"rows_kept":7,"cut":false,"hidden":false,"merged":[]}
["РЕЕСТР НАЧИСЛЕНИЙ",{"$f":"Настройки!B4&\"_\"&Настройки!B9&\"_\"&Настройки!B10&\"_\"&TEXT(TODAY(),\"ДД.ММ.ГГГГ\")&\".TXT\"","v":"2465049605_40601810804073000001_001_23.06.2017.TXT"}]
["Сумма реестра:",{"$f":"SUM(Реестр[Сумма])","v":1500}]
["Количество записей:",{"$f":"COUNTA(Реестр[Сумма])","v":1}]
[]
[]
["ФИО","ФИО ребенка","Назначение","КБК","ОКТМО","Сумма"]
["Иванов Степан Петрович","Иванов Петр Степанович","ДР 15.11.2005","07550000000000000130","04701000",1500]

{"sheet":"Настройки","index":1,"n_rows":40,"n_cols":22,"rows_kept":40,"cut":false,"hidden":false,"merged":[]}
["Параметр","Значение",null,null,null,null,null,null,null,null,null,null,null,null,null,null,null,null,null,"Шаблоны",null,"Поля шаблона"]
["Шаблон","Шаблон 3.13(для квитанций)",null,null,null,null,null,null,null,null,null,null,null,null,null,null,null,null,null,"Шаблон 1.1",null,"ФИО;Назначение;Сумма"]
["Наименование организации","Минфин Края (КГБОУ \"Красноярский кадетский корпус\" имени А.И.Лебедя, л/с 75192А02971)",null,null,null,null,null,null,null,null,null,null,null,null,null,null,null,null,null,"Шаблон 1.2",null,"Номер договора;ФИО;Сумма"]
["ИНН","2465049605",null,null,null,null,null,null,null,null,null,null,null,null,null,null,null,null,null,"Шаблон 1.3",null,"Номер договора;ФИО;Адрес;Сумма"]
["КПП","246501001",null,null,null,null,null,null,null,null,null,null,null,null,null,null,null,null,null,"Шаблон 1.4",null,"Номер договора;ФИО;Адрес;Сумма"]
["БИК","040407001",null,null,null,null,null,null,null,null,null,null,null,null,null,null,null,null,null,"Шаблон 2.1",null,"ФИО;Адрес;Назначение;Сумма"]
["Корреспондентский счет",null,null,null,null,null,null,null,null,null,null,null,null,null,null,null,null,null,null,"Шаблон 3.1",null,"ФИО;ФИО ребенка;Адрес;Номер учреждения;Номер группы;Лицевой счет;Период;КБК;ОКТМО;Назначение;Сумма"]
["Наименование банка","Отделение Красноярск г.Красноярск",null,null,null,null,null,null,null,null,null,null,null,null,null,null,null,null,null,"Шаблон 3.2",null,"ФИО;Адрес;ФИО ребенка;Сумма"]
["Расчетный счет","40601810804073000001",null,null,null,null,null,null,null,null,null,null,null,null,null,null,null,null,null,"Шаблон 3.3",null,"ФИО студента;ФИО;Номер группы;Номер договора;Период;Сумма"]
["Код услуги","001",null,null,null,null,null,null,null,null,null,null,null,null,null,null,null,null,null,"Шаблон 3.4",null,"Лицевой счет;ФИО ребенка;Номер группы;Период;Назначение;КБК;ОКТМО;Сумма"]
["Каталог для выгрузки реестра",null,null,null,null,null,null,null,null,null,null,null,null,null,null,null,null,null,null,"Шаблон 3.5",null,"ФИО;Адрес;ФИО ребенка;Период;КБК;ОКТМО;Сумма"]
["Дополнительные параметры ДШК",null,null,null,null,null,null,null,null,null,null,null,null,null,null,null,null,null,null,"Шаблон 3.6",null,"ФИО ребенка;Период;КБК;ОКТМО;Сумма"]
[null,null,null,null,null,null,null,null,null,null,null,null,null,null,null,null,null,null,null,"Шаблон 3.7",null,"ФИО ребенка;Лицевой счет;Номер группы;Адрес;КБК;ОКТМО;Сумма"]
[null,null,null,null,null,null,null,null,null,null,null,null,null,null,null,null,null,null,null,"Шаблон 3.8",null,"ФИО;Адрес;Назначение;КБК;ОКТМО;Сумма"]
[null,null,null,null,null,null,null,null,null,null,null,null,null,null,null,null,null,null,null,"Шаблон 3.9",null,"ФИО;Адрес;Тип средств;Назначение;КБК;ОКТМО;Сумма"]
[null,null,null,null,null,null,null,null,null,null,null,null,null,null,null,null,null,null,null,"Шаблон 3.10",null,"ФИО;ФИО ребенка;Адрес;Номер группы;Лицевой счет;Назначение;Сумма"]
[null,null,null,null,null,null,null,null,null,null,null,null,null,null,null,null,null,null,null,"Шаблон 3.11",null,"ФИО;Адрес;Назначение;КБК;ОКТМО;Вид ДУЛ;Номер ДУЛ;Сумма"]
[null,null,null,null,null,null,null,null,null,null,null,null,null,null,null,null,null,null,null,"Шаблон 3.12",null,"Лицевой счет;ФИО;Адрес;КБК;ОКТМО;Сумма"]
[null,null,null,null,null,null,null,null,null,null,null,null,null,null,null,null,null,null,null,"Шаблон 3.13(для квитанций)",null,"ФИО;ФИО ребенка;Назначение;КБК;ОКТМО;Сумма"]
[null,null,null,null,null,null,null,null,null,null,null,null,null,null,null,null,null,null,null,"Шаблон 3.13(для ФБЗ)",null,"Назначение;КБК;ОКТМО"]
[null,null,null,null,null,null,null,null,null,null,null,null,null,null,null,null,null,null,null,"Шаблон 3.15",null,"ФИО;ФИО студента;Номер группы;Номер курса;Вид дохода;Сумма"]
[null,null,null,null,null,null,null,null,null,null,null,null,null,null,null,null,null,null,null,"Шаблон 3.16",null,"Лицевой счет;ФИО;Наименование МОУ;Группа/Кружок;КБК;ОКТМО;Сумма"]
[null,null,null,null,null,null,null,null,null,null,null,null,null,null,null,null,null,null,null,"Шаблон 4.1",null,"ФИО;Адрес;КБК;ОКТМО;УИН;СНИЛС;ИНН плательщика;Номер ДУЛ;Назначение;Сумма"]
[null,null,null,null,null,null,null,null,null,null,null,null,null,null,null,null,null,null,null,"Шаблон 5.1",null,"ФИО;Адрес;Сумма"]
[null,null,null,null,null,null,null,null,null,null,null,null,null,null,null,null,null,null,null,"Шаблон 6.1",null,"Лицевой счет;Сумма"]
[null,null,null,null,null,null,null,null,null,null,null,null,null,null,null,null,null,null,null,"Шаблон 7.1",null,"Лицевой счет;ФИО;Сумма"]
[null,null,null,null,null,null,null,null,null,null,null,null,null,null,null,null,null,null,null,"Шаблон 8.1",null,"Лицевой счет;Адрес;Сумма"]
[null,null,null,null,null,null,null,null,null,null,null,null,null,null,null,null,null,null,null,"Шаблон 8.2",null,"Лицевой счет;Адрес;Сумма;Период"]
[null,null,null,null,null,null,null,null,null,null,null,null,null,null,null,null,null,null,null,"Шаблон 10.1",null,"Лицевой счет;ФИО;Адрес;Сумма"]
[null,null,null,null,null,null,null,null,null,null,null,null,null,null,null,null,null,null,null,"Шаблон 10.2",null,"Лицевой счет;ФИО;Адрес;Период;Сумма"]
[null,null,null,null,null,null,null,null,null,null,null,null,null,null,null,null,null,null,null,"Шаблон 10.3",null,"Лицевой счет;ФИО;Адрес;Сумма"]
[null,null,null,null,null,null,null,null,null,null,null,null,null,null,null,null,null,null,null,"Шаблон 10.4",null,"Лицевой счет;ФИО;Адрес;Назначение;Сумма"]
[null,null,null,null,null,null,null,null,null,null,null,null,null,null,null,null,null,null,null,"Шаблон 10.5",null,"Лицевой счет;ФИО;Адрес;Сумма;Назначение"]
[null,null,null,null,null,null,null,null,null,null,null,null,null,null,null,null,null,null,null,"Шаблон 11.1",null,"Лицевой счет;Период;Сумма"]
[null,null,null,null,null,null,null,null,null,null,null,null,null,null,null,null,null,null,null,"Шаблон 14.1",null,"Лицевой счет;ФИО;Адрес;Период;Сумма;Наименование счетчика1;Предыдущее показание счетчика 1;Наименование счетчика2;Предыдущее показание счетчика 2;Наименование счетчика3;Предыдущее показание счетчика 3;Наименование счетчика4;Предыдущее показание счетчика 4;Наименование счетчика5;Предыдущее показание счетчика 5;Наименование счетчика6;Предыдущее показание счетчика 6;Наименование счетчика7;Предыдущее показание счетчика 7;Наименование счетчика8;Предыдущее показание счетчика 8;Наименование счетчика9;Предыдущее показание счетчика 9;Наименование счетчика10;Предыдущее показание счетчика 10;Наименование счетчика11;Предыдущее показание счетчика 11;Наименование счетчика12;Предыдущее показание счетчика 12"]
[null,null,null,null,null,null,null,null,null,null,null,null,null,null,null,null,null,null,null,"Шаблон 3.8 (ФБЗ)",null,"Назначение;КБК;ОКТМО"]
[null,null,null,null,null,null,null,null,null,null,null,null,null,null,null,null,null,null,null,"Шаблон 9.1",null,"Лицевой счет;ФИО;Адрес;Период;Наименование услуги1;Код услуги1;Сумма1;Наименование услуги2;Код услуги2;Сумма2;Наименование услуги3;Код услуги3;Сумма3;Наименование услуги4;Код услуги4;Сумма4;Наименование услуги5;Код услуги5;Сумма5;Наименование услуги6;Код услуги6;Сумма6;Наименование услуги7;Код услуги7;Сумма7;Наименование услуги8;Код услуги8;Сумма8;Наименование услуги9;Код услуги9;Сумма9;Наименование услуги10;Код услуги10;Сумма10;Наименование услуги11;Код услуги11;Сумма11;Наименование услуги12;Код услуги12;Сумма12;"]
[null,null,null,null,null,null,null,null,null,null,null,null,null,null,null,null,null,null,null,"Шаблон 13.1",null,"Лицевой счет;Период;Счетчик холодной воды 1;Счетчик холодной воды 2;Счетчик холодной воды 3;Счетчик горячей воды 1;Счетчик горячей воды 2;Счетчик горячей воды 3;Счетчик электроэнергии 1;Счетчик электроэнергии 2;Сумма"]
[null,null,null,null,null,null,null,null,null,null,null,null,null,null,null,null,null,null,null,"Шаблон 13.2",null,"Лицевой счет;ФИО;Адрес;Предыдущие показания ХВС (счетчик №1);Текущие показания ХВС (счетчик №1);Предыдущие показания ХВС (счетчик №2);Текущие показания ХВС (счетчик №2);Предыдущие показания ХВС (счетчик №3);Текущие показания ХВС (счетчик №3);Предыдущие показания ХВС (счетчик №4);Текущие показания ХВС (счетчик №4);Сумма"]
[null,null,null,null,null,null,null,null,null,null,null,null,null,null,null,null,null,null,null,"42_ЛТШ_3_2",null,"Табельный номер ребенка;Код группы;ФИО ребенка;Сумма"]

{"sheet":"Шаблон ДШК","index":2,"n_rows":47,"n_cols":25,"rows_kept":47,"cut":false,"hidden":true,"merged":[[55,1,56,13],[55,24,56,36],[58,1,62,13],[58,24,62,36],[51,1,52,13],[51,24,52,36],[53,1,54,13],[53,24,54,36],[37,1,41,13],[37,24,41,36],[43,0,44,22],[43,23,44,45],[46,1,50,13],[46,24,50,36],[22,0,23,22],[22,23,23,45],[25,1,29,13],[25,24,29,36],[34,1,35,13],[34,24,35,36],[30,1,31,13],[30,24,31,36],[32,1,33,13],[32,24,33,36],[11,1,12,13],[11,24,12,36],[13,1,14,13],[13,24,14,36],[16,1,20,13],[16,24,20,36],[1,23,2,45],[4,1,8,13],[1,0,3,22],[4,24,8,36],[9,1,10,13],[9,24,10,36]]}
[]
[{"$f":"Name","v":"Минфин Края (КГБОУ \"Красноярский кадетский корпус\" имени А.И.Лебедя, л/с 75192А02971)"},null,null,null,null,null,null,null,null,null,null,null,null,null,null,null,null,null,null,null,null,null,null,{"$f":"Name","v":"Минфин Края (КГБОУ \"Красноярский кадетский корпус\" имени А.И.Лебедя, л/с 75192А02971)"}]
[]
[]
[null,{"$f":"\"ИНН \"&INN&\", БИК \"&BIC&\", Р/С \"&PersonalAcc","v":"ИНН 2465049605, БИК 040407001, Р/С 40601810804073000001"},null,null,null,null,null,null,null,null,null,null,null,null,null,null,null,null,null,null,null,null,null,null,{"$f":"\"ИНН \"&INN&\", БИК \"&BIC&\", Р/С \"&PersonalAcc","v":"ИНН 2465049605, БИК 040407001, Р/С 40601810804073000001"}]
[]
[]
[]
[]
[]
[]
[]
[]
[]
[]
[]
[]
[]
[]
[]
[]
[]
[{"$f":"Name","v":"Минфин Края (КГБОУ \"Красноярский кадетский корпус\" имени А.И.Лебедя, л/с 75192А02971)"},null,null,null,null,null,null,null,null,null,null,null,null,null,null,null,null,null,null,null,null,null,null,{"$f":"Name","v":"Минфин Края (КГБОУ \"Красноярский кадетский корпус\" имени А.И.Лебедя, л/с 75192А02971)"}]
[]
[]
[null,{"$f":"\"ИНН \"&INN&\", БИК \"&BIC&\", Р/С \"&PersonalAcc","v":"ИНН 2465049605, БИК 040407001, Р/С 40601810804073000001"},null,null,null,null,null,null,null,null,null,null,null,null,null,null,null,null,null,null,null,null,null,null,{"$f":"\"ИНН \"&INN&\", БИК \"&BIC&\", Р/С \"&PersonalAcc","v":"ИНН 2465049605, БИК 040407001, Р/С 40601810804073000001"}]
[]
[]
[]
[]
[]
[]
[]
[]
[]
[]
[]
[]
[]
[]
[]
[]
[]
[{"$f":"Name","v":"Минфин Края (КГБОУ \"Красноярский кадетский корпус\" имени А.И.Лебедя, л/с 75192А02971)"},null,null,null,null,null,null,null,null,null,null,null,null,null,null,null,null,null,null,null,null,null,null,{"$f":"Name","v":"Минфин Края (КГБОУ \"Красноярский кадетский корпус\" имени А.И.Лебедя, л/с 75192А02971)"}]
[]
[]
[null,{"$f":"\"ИНН \"&INN&\", БИК \"&BIC&\", Р/С \"&PersonalAcc","v":"ИНН 2465049605, БИК 040407001, Р/С 40601810804073000001"},null,null,null,null,null,null,null,null,null,null,null,null,null,null,null,null,null,null,null,null,null,null,{"$f":"\"ИНН \"&INN&\", БИК \"&BIC&\", Р/С \"&PersonalAcc","v":"ИНН 2465049605, БИК 040407001, Р/С 40601810804073000001"}]

{"sheet":"Шаблон ПД4","index":3,"n_rows":27,"n_cols":3,"rows_kept":27,"cut":false,"hidden":true,"merged":[[26,0,26,2]]}
[null,null,"ПАО СБЕРБАНК                                                                            Форма №ПД-4"]
[null,"Извещение",{"$f":"Name","v":"Минфин Края (КГБОУ \"Красноярский кадетский корпус\" имени А.И.Лебедя, л/с 75192А02971)"}]
[null,null,"(наименование получателя платежа)"]
[null,null,{"$f":"\"  ИНН \"&INN&\" КПП \"&KPP&\"            \"&PersonalAcc","v":"  ИНН 2465049605 КПП 246501001            40601810804073000001"}]
[null,null,"  (инн получателя платежа)                                                    (номер счёта получателя платежа)"]
[null,null,{"$f":"\"БИК \"&BIC&\" (\"&BankName&\")\"","v":"БИК 040407001 (Отделение Красноярск г.Красноярск)"}]
[null,null,"(наименование банка получателя платежа)"]
[]
[null,null,"(назначение платежа)"]
[]
[null,null,"(сумма платежа)"]
[null,null,"С условиями приёма указанной в платёжном документе суммы, в т.ч. с суммой взимаемой платы за услуги  "]
[null,null,"банка, ознакомлен и согласен.                    Подпись плательщика                                        \\"]
[null,null,"ПАО СБЕРБАНК                                                                            Форма №ПД-4"]
[null,"Квитанция",{"$f":"C2","v":"Минфин Края (КГБОУ \"Красноярский кадетский корпус\" имени А.И.Лебедя, л/с 75192А02971)"}]
[null,null,"(наименование получателя платежа)"]
[null,null,{"$f":"C4","v":"  ИНН 2465049605 КПП 246501001            40601810804073000001"}]
[null,null,"  (инн получателя платежа)                                                            (номер счёта получателя платежа)"]
[null,null,{"$f":"C6","v":"БИК 040407001 (Отделение Красноярск г.Красноярск)"}]
[null,null," (наименование банка получателя платежа)"]
[null,null,{"$f":"C8","v":0}]
[null,null,"(назначение платежа)"]
[null,null,{"$f":"C10","v":0}]
[null,null,"(сумма платежа)"]
[null,null,"С условиями приёма указанной в платёжном документе суммы, в т.ч. с суммой взимаемой платы за услуги  "]
[null,null,"банка, ознакомлен и согласен.                    Подпись плательщика                                        \\"]
["-----------------------------------------------------------------------------------------------------------------"]

{"sheet":"вер. 3.00 от 21.12.2016","index":4,"n_rows":10,"n_cols":2,"rows_kept":10,"cut":false,"hidden":false,"merged":[]}
["Инструкция по заполнению файла"]
[1,"Для корректного формирования текстового файла нужно использовать Excel  2007, 2010."]
[2,"Перед формированием файла на вкладке \"Настройка\" необходимо указать шаблон Сбербанка, расчетные реквизиты организации, каталог для выгрузки текстовых файлов, указать номер услуги. Если вы предоставляете реестр только по одной услуге - укажите 001"]
[3,"Во вкадке \"Настройка\" все поля обязательны для заполнения"]
[4,"Значения полей \"Лицевой счет\"/\"Номер договора\" являются ключевыми и они не должны дублироваться для одного реестра."]
[5,"В поле \"Лицевой счет\"/\"Номер договора\" разрешен ввод русских и латинских букв, цифр, символа «-»."]
[6,"В поле \"ФИО\" разрешен ввод русских букв, пробела и символа «-»."]
[7,"В поле \"Адрес\" разрешен ввод русских букв, цифр, запятой, точки, пробела, символов \"-\" и \"/\"."]
[8,"Если данные содержат ошибки, реестр или картчоки ДШК сформировать будет невозможно. "]
[9,"Сформированный файл передается в банк способом, установленным договором."]

{"sheet":"Карточки ДШК","index":5,"n_rows":47,"n_cols":25,"rows_kept":47,"cut":false,"hidden":false,"merged":[[1,0,3,22],[1,23,2,45],[4,1,8,13],[4,24,8,36],[9,1,10,13],[9,24,10,36],[11,1,12,13],[11,24,12,36],[13,1,14,13],[13,24,14,36],[16,1,20,13],[16,24,20,36],[22,0,23,22],[22,23,23,45],[25,1,29,13],[25,24,29,36],[30,1,31,13],[30,24,31,36],[32,1,33,13],[32,24,33,36],[34,1,35,13],[34,24,35,36],[37,1,41,13],[37,24,41,36],[43,0,44,22],[43,23,44,45],[46,1,50,13],[46,24,50,36],[51,1,52,13],[51,24,52,36],[53,1,54,13],[53,24,54,36],[55,1,56,13],[55,24,56,36],[58,1,62,13],[58,24,62,36]]}
[]
[{"$f":"Name","v":"Минфин Края (КГБОУ \"Красноярский кадетский корпус\" имени А.И.Лебедя, л/с 75192А02971)"},null,null,null,null,null,null,null,null,null,null,null,null,null,null,null,null,null,null,null,null,null,null,{"$f":"Name","v":"Минфин Края (КГБОУ \"Красноярский кадетский корпус\" имени А.И.Лебедя, л/с 75192А02971)"}]
[]
[]
[null,{"$f":"\"ИНН \"&INN&\", БИК \"&BIC&\", Р/С \"&PersonalAcc","v":"ИНН 2465049605, БИК 040407001, Р/С 40601810804073000001"},null,null,null,null,null,null,null,null,null,null,null,null,null,null,null,null,null,null,null,null,null,null,{"$f":"\"ИНН \"&INN&\", БИК \"&BIC&\", Р/С \"&PersonalAcc","v":"ИНН 2465049605, БИК 040407001, Р/С 40601810804073000001"}]
[]
[]
[]
[]
[]
[]
[null,"Иванов Степан Петрович"]
[]
[null,"Сумма: 1500.00"]
[]
[]
[]
[]
[]
[]
[]
[]
[{"$f":"Name","v":"Минфин Края (КГБОУ \"Красноярский кадетский корпус\" имени А.И.Лебедя, л/с 75192А02971)"},null,null,null,null,null,null,null,null,null,null,null,null,null,null,null,null,null,null,null,null,null,null,{"$f":"Name","v":"Минфин Края (КГБОУ \"Красноярский кадетский корпус\" имени А.И.Лебедя, л/с 75192А02971)"}]
[]
[]
[null,{"$f":"\"ИНН \"&INN&\", БИК \"&BIC&\", Р/С \"&PersonalAcc","v":"ИНН 2465049605, БИК 040407001, Р/С 40601810804073000001"},null,null,null,null,null,null,null,null,null,null,null,null,null,null,null,null,null,null,null,null,null,null,{"$f":"\"ИНН \"&INN&\", БИК \"&BIC&\", Р/С \"&PersonalAcc","v":"ИНН 2465049605, БИК 040407001, Р/С 40601810804073000001"}]
[]
[]
[]
[]
[]
[]
[]
[]
[]
[]
[]
[]
[]
[]
[]
[]
[]
[{"$f":"Name","v":"Минфин Края (КГБОУ \"Красноярский кадетский корпус\" имени А.И.Лебедя, л/с 75192А02971)"},null,null,null,null,null,null,null,null,null,null,null,null,null,null,null,null,null,null,null,null,null,null,{"$f":"Name","v":"Минфин Края (КГБОУ \"Красноярский кадетский корпус\" имени А.И.Лебедя, л/с 75192А02971)"}]
[]
[]
[null,{"$f":"\"ИНН \"&INN&\", БИК \"&BIC&\", Р/С \"&PersonalAcc","v":"ИНН 2465049605, БИК 040407001, Р/С 40601810804073000001"},null,null,null,null,null,null,null,null,null,null,null,null,null,null,null,null,null,null,null,null,null,null,{"$f":"\"ИНН \"&INN&\", БИК \"&BIC&\", Р/С \"&PersonalAcc","v":"ИНН 2465049605, БИК 040407001, Р/С 40601810804073000001"}]

{"sheet":"Квитанция ПД4","index":6,"n_rows":27,"n_cols":3,"rows_kept":27,"cut":false,"hidden":false,"merged":[[26,0,26,2]]}
[null,null,"ПАО СБЕРБАНК                                                                            Форма №ПД-4"]
[null,"Извещение",{"$f":"Name","v":"Минфин Края (КГБОУ \"Красноярский кадетский корпус\" имени А.И.Лебедя, л/с 75192А02971)"}]
[null,null,"(наименование получателя платежа)"]
[null,null,{"$f":"\"  ИНН \"&INN&\" КПП \"&KPP&\"            \"&PersonalAcc","v":"  ИНН 2465049605 КПП 246501001            40601810804073000001"}]
[null,null,"  (инн получателя платежа)                                                    (номер счёта получателя платежа)"]
[null,null,{"$f":"\"БИК \"&BIC&\" (\"&BankName&\")\"","v":"БИК 040407001 (Отделение Красноярск г.Красноярск)"}]
[null,null,"(наименование банка получателя платежа)"]
[null,null,"ФИО: Иванов Степан Петрович; ФИО ребенка: Иванов Петр Степанович; Назначение: ДР 15.11.2005; КБК: 07550000000000000130; ОКТМО: 04701000"]
[null,null,"(назначение платежа)"]
[null,null,"Сумма: 1500 руб. 00 коп."]
[null,null,"(сумма платежа)"]
[null,null,"С условиями приёма указанной в платёжном документе суммы, в т.ч. с суммой взимаемой платы за услуги  "]
[null,null,"банка, ознакомлен и согласен.                    Подпись плательщика                                        \\"]
[null,null,"ПАО СБЕРБАНК                                                                            Форма №ПД-4"]
[null,"Квитанция",{"$f":"C2","v":"Минфин Края (КГБОУ \"Красноярский кадетский корпус\" имени А.И.Лебедя, л/с 75192А02971)"}]
[null,null,"(наименование получателя платежа)"]
[null,null,{"$f":"C4","v":"  ИНН 2465049605 КПП 246501001            40601810804073000001"}]
[null,null,"  (инн получателя платежа)                                                            (номер счёта получателя платежа)"]
[null,null,{"$f":"C6","v":"БИК 040407001 (Отделение Красноярск г.Красноярск)"}]
[null,null," (наименование банка получателя платежа)"]
[null,null,{"$f":"C8","v":"ФИО: Иванов Степан Петрович; ФИО ребенка: Иванов Петр Степанович; Назначение: ДР 15.11.2005; КБК: 07550000000000000130; ОКТМО: 04701000"}]
[null,null,"(назначение платежа)"]
[null,null,{"$f":"C10","v":"Сумма: 1500 руб. 00 коп."}]
[null,null,"(сумма платежа)"]
[null,null,"С условиями приёма указанной в платёжном документе суммы, в т.ч. с суммой взимаемой платы за услуги  "]
[null,null,"банка, ознакомлен и согласен.                    Подпись плательщика                                        \\"]
["-----------------------------------------------------------------------------------------------------------------"]